bitfinex/quotes_ETHUSD_20251028
["timestamp","ask_amount","ask_price","bid_price","bid_amount"]
[1761627933441,12.61183427,4100.6,4100.5,0.002]
[1761627933844,12.73343427,4100.6,4100.5,0.002]
[1761627935047,11.86085019,4100.6,4100.5,0.002]
[1761627936878,13.17496178,4100.6,4100.5,0.002]
[1761627937452,11.86085019,4100.6,4100.5,0.002]
[1761627937657,13.58046578,4100.6,4100.5,0.002]
[1761627938065,12.26635419,4100.6,4100.5,0.002]
[1761627940382,13.58038111,4100.6,4100.5,0.002]
[1761627945390,4.39943098,4100.5,4099.6,0.002]
[1761627945574,6.28198294,4100.5,4099.6,0.002]
[1761627945774,4.39949045,4100.4,4099.6,0.002]
[1761627945986,5.36370434,4100.4,4099.6,0.002]
[1761627946558,5.46134044,4100.4,4099.6,0.002]
[1761627947406,2.84434993,4100.3,4099.6,0.002]
[1761627947584,5.50232131,4100.3,4099.6,0.002]
[1761627947781,5.62392131,4100.3,4099.6,0.002]
[1761627948088,5.72155789,4100.3,4099.6,0.002]
[1761627948599,5.72155789,4100.3,4100.1,0.012]
[1761627951071,6.94055789,4100.3,4100.1,0.012]
[1761627961353,3.99410541,4100.2,4100.1,0.012]
[1761627961537,2.4389649,4100.1,4099.6,0.002]
[1761627961852,3.99458137,4099.4,4099.3,0.002]
[1761627962020,5.43783333,4099.4,4099.3,0.002]
[1761627962221,5.99653333,4099.4,4099.3,0.002]
[1761627963450,5.55943333,4099.4,4099.3,0.002]
[1761627963656,5.99653333,4099.4,4099.3,0.002]
[1761627964136,6.18283333,4099.4,4099.3,0.002]
[1761627964332,5.99653333,4099.4,4099.3,0.002]
[1761627964949,5.55943333,4099.4,4099.3,0.002]
[1761627965520,6.77843333,4099.4,4099.3,0.002]
[1761627965716,7.21553333,4099.4,4099.3,0.002]
[1761627966049,6.77843333,4099.4,4099.3,0.002]
[1761627966752,7.21553333,4099.4,4099.3,0.002]
[1761627969530,8.09278143,4099.4,4099.3,0.002]
[1761627970230,7.65568143,4099.4,4099.3,0.002]
[1761627972122,10.22168143,4099.4,4099.3,0.002]
[1761627972322,7.65568143,4099.4,4099.3,0.002]
[1761627976073,8.09278143,4099.4,4099.3,0.002]
[1761627976271,8.09278143,4099.4,4098.4,0.052]
[1761627976272,2.43991704,4098.5,4098.4,0.052]
[1761627976441,7.70344629,4098.5,4098.4,0.052]
[1761627976639,8.22836018,4098.5,4098.4,0.4958]
[1761627977038,3.08643093,4098.5,4098.4,0.4958]
[1761627977271,8.22836018,4098.5,4098.4,0.4958]
[1761627979068,9.44736018,4098.5,4098.4,0.4958]
[1761627979576,4.18383093,4098.5,4098.4,0.4958]
[1761627979750,4.30543093,4098.5,4098.4,0.4958]
[1761627981384,4.30543093,4098.5,4098.4,0.052]
[1761627981781,4.30543093,4098.5,4098.4,0.4958]
[1761627985806,0.52491389,4098.5,4098.4,0.4958]
[1761627986098,0.52491389,4098.5,4098.4,3.43157657]
[1761627986099,1.219,4098.5,4098.4,3.43157657]
[1761627986274,1.219,4098.5,4098.4,4.03857167]
[1761627988909,0.001,4099.1,4099.0,2.43961941]
[1761627989206,1.22,4099.1,4099.0,2.43961941]
[1761627989402,1.22,4099.1,4099.0,2.88341941]
[1761627989608,1.22,4099.1,4099.0,4.14790042]
[1761627992211,1.22,4099.1,4099.0,6.10860442]
[1761627995814,1.22,4099.1,4099.0,6.23020442]
[1761628001006,1.22,4099.1,4099.0,10.11020442]
[1761628001820,0.001,4099.6,4099.5,4.40002586]
[1761628002020,0.001,4099.6,4099.5,9.49032446]
[1761628002331,0.001,4099.6,4099.5,9.94632446]
[1761628002543,0.001,4099.6,4099.5,10.67828439]
[1761628004144,0.001,4099.6,4099.5,14.55828439]
[1761628009650,0.001,4099.6,4099.5,9.746424]
[1761628009948,0.001,4099.6,4099.5,10.151928]
[1761628011451,0.001,4099.6,4099.5,8.596728]
[1761628011620,0.001,4099.6,4099.5,10.151928]
[1761628012549,0.001,4099.6,4099.5,9.695928]
[1761628012752,0.001,4099.6,4099.5,10.151928]
[1761628013357,0.001,4099.6,4099.5,6.271928]
[1761628013857,0.001,4099.6,4099.5,0.73195993]
[1761628014027,0.001,4099.6,4099.5,3.17128179]
[1761628016927,1.22,4099.6,4099.5,3.17128179]
[1761628019636,1.22,4099.6,4099.5,3.29288179]
[1761628020035,1.6741,4099.6,4099.5,0.73195993]
[1761628020331,1.7961,4099.6,4099.1,0.1216]
[1761628020537,0.4541,4099.5,4099.1,0.73216357]
[1761628020737,2.43940281,4099.4,4099.1,0.73216357]
[1761628020955,0.1216,4099.4,4099.0,0.002]
[1761628021270,0.4541,4099.3,4099.0,0.73416357]
[1761628023064,0.4541,4099.3,4099.1,0.002]
[1761628023264,0.1216,4099.4,4099.1,0.002]
[1761628023466,1.219,4099.3,4099.2,3.01710039]
[1761628023967,1.219,4099.3,4099.2,3.74915855]
[1761628024178,0.001,4099.6,4099.5,2.43932186]
[1761628024361,1.22,4099.6,4099.5,2.43932186]
[1761628024557,1.22,4099.6,4099.5,2.99322186]
[1761628026259,1.22,4099.6,4099.5,2.56092186]
[1761628026468,1.22,4099.6,4099.5,3.5201537]
[1761628026847,1.22,4099.6,4099.5,3.9256577]
[1761628027675,1.22,4099.6,4099.5,3.5201537]
[1761628035252,1.22,4099.6,4099.5,3.0609537]
[1761628037760,1.22,4099.6,4099.5,3.5201537]
[1761628039590,0.001,4099.6,4099.5,3.5201537]
[1761628040357,0.001,4099.6,4099.5,0.1216]
[1761628040687,0.001,4099.6,4099.4,2.439333]
[1761628040688,0.4704,4099.6,4099.4,2.439333]
[1761628041076,0.4704,4099.6,4099.1,0.002]
[1761628041277,0.4704,4099.6,4099.2,2.43945733]
[1761628041502,0.4704,4099.6,4099.1,0.002]
[1761628042007,0.29096076,4099.5,4099.1,0.002]
[1761628042486,0.4694,4099.4,4099.1,0.002]
[1761628042688,0.4694,4099.4,4099.2,2.43948457]
[1761628043486,0.4694,4099.4,4099.1,2.44154871]
[1761628046511,0.4694,4099.4,4099.2,2.4394852]
[1761628047211,0.4694,4099.4,4099.1,2.44155069]
[1761628047707,0.4694,4099.4,4099.1,0.002]
[1761628049182,0.4694,4099.4,4099.1,2.44154077]
[1761628051411,0.1226,4099.6,4099.1,0.002]
[1761628051616,0.1226,4099.6,4099.3,2.43942826]
[1761628051784,0.001,4099.6,4099.3,0.1216]
[1761628051983,0.001,4099.6,4099.5,2.43932186]
[1761628058062,0.001,4099.6,4099.5,2.88962186]
[1761628058526,0.001,4099.6,4099.5,2.43932186]
[1761628058720,1.22,4099.6,4099.5,2.43932186]
[1761628058936,1.22,4099.6,4099.3,0.1216]
[1761628059142,1.6894,4099.6,4099.4,2.43936422]
[1761628060144,1.6894,4099.6,4099.3,2.56102882]
[1761628060814,1.6894,4099.6,4099.4,2.43937801]
[1761628061213,1.6894,4099.6,4099.3,2.5610218]
[1761628062350,0.4694,4099.5,4099.3,0.1216]
[1761628062519,0.4694,4099.5,4099.1,0.002]
[1761628062520,0.88225636,4099.5,4099.1,0.002]
[1761628062725,0.4694,4099.5,4099.1,0.002]
[1761628062924,0.4694,4099.4,4099.1,0.002]
[1761628066159,0.4694,4099.4,4099.1,2.44155982]
[1761628067261,0.4694,4099.4,4099.1,0.002]
[1761628068361,1.219,4099.3,4099.1,0.002]
[1761628069167,1.6884,4099.3,4099.1,0.002]
[1761628069368,0.4694,4099.2,4099.1,0.002]
[1761628069660,3.03050039,4099.2,4099.1,0.002]
[1761628069856,3.55582799,4099.2,4099.1,0.002]
[1761628070340,3.03050039,4099.2,4099.1,0.002]
[1761628077789,3.03150039,4099.2,4099.1,0.002]
[1761628078764,4.21459434,4099.2,4099.1,0.002]
[1761628082725,5.43359434,4099.2,4099.1,0.002]
[1761628086629,7.39189208,4099.2,4099.1,0.002]
[1761628096627,7.51349208,4099.2,4099.1,0.002]
[1761628098008,4.4508599,4099.1,4099.0,1e-08]
[1761628098233,6.55065157,4099.1,4099.0,1e-08]
[1761628099402,7.42666231,4099.1,4099.0,1e-08]
[1761628100417,11.69169947,4099.1,4099.0,1e-08]
[1761628100649,12.34771654,4099.1,4099.0,1e-08]
[1761628100818,11.69169947,4099.1,4099.0,1e-08]
[1761628101235,11.23559947,4099.1,4099.0,1e-08]
[1761628101420,11.69169947,4099.1,4099.0,1e-08]
[1761628102024,12.45459947,4099.1,4099.0,1e-08]
[1761628102349,12.91069947,4099.1,4099.0,1e-08]
[1761628102825,12.45459947,4099.1,4099.0,1e-08]
[1761628103950,0.64629774,4099.1,4099.0,1e-08]
[1761628104249,0.001,4099.2,4099.0,0.44760001]
[1761628104465,1.219,4099.1,4099.0,0.44760001]
[1761628106549,1.219,4099.1,4099.0,2.88721942]
[1761628113856,1.219,4099.1,4099.0,4.84792342]
[1761628114163,1.219,4099.1,4099.0,6.0862863]
[1761628118136,1.219,4099.1,4099.0,0.12160001]
[1761628122770,0.19417885,4099.1,4099.0,0.12160001]
[1761628125286,0.19417885,4099.1,4099.0,1e-08]
[1761628127666,2.63373875,4099.1,4099.0,1e-08]
[1761628127881,0.65107885,4099.1,4099.0,1e-08]
[1761628128083,0.19417885,4099.1,4099.0,1e-08]
[1761628129277,0.19517885,4099.1,4099.0,1e-08]
[1761628129580,0.65207885,4099.1,4099.0,1e-08]
[1761628130956,3.09163875,4099.1,4099.0,1e-08]
[1761628131186,4.19486341,4099.1,4099.0,1e-08]
[1761628131385,6.27488407,4099.1,4099.0,1e-08]
[1761628140434,3.7811599,4099.1,4099.0,1e-08]
[1761628140637,4.2380599,4099.1,4099.0,1e-08]
[1761628141086,4.76205878,4099.1,4099.0,1e-08]
[1761628141692,6.31725878,4099.1,4099.0,1e-08]
[1761628146819,1.5552,4099.0,4098.6,0.002]
[1761628147004,6.93854169,4098.7,4098.6,0.002]
[1761628147199,9.58004057,4098.7,4098.6,0.002]
[1761628147411,10.23605764,4098.7,4098.6,0.002]
[1761628147613,14.92570535,4098.7,4098.6,0.002]
[1761628147816,3.99505751,4098.6,4098.5,0.002]
[1761628148017,0.405504,4098.5,4097.1,0.01]
[1761628148314,6.72483491,4097.2,4097.1,0.01]
[1761628148550,7.94383491,4097.2,4097.1,0.01]
[1761628148835,8.38683491,4097.2,4097.1,0.01]
[1761628149202,9.49103594,4097.2,4097.1,0.01]
[1761628151831,13.77517965,4097.2,4097.1,0.01]
[1761628152133,15.33037965,4097.2,4097.1,0.01]
[1761628152533,15.85260621,4097.2,4097.1,0.01]
[1761628153703,1.5552,4097.1,4096.1,0.01]
[1761628153902,6.72543075,4096.2,4096.1,0.01]
[1761628154299,4.28414371,4096.2,4096.1,0.01]
[1761628154903,4.28414371,4096.2,4096.1,0.4493]
[1761628155345,4.28414371,4096.2,4096.1,0.6034]
[1761628157908,4.40654371,4096.2,4096.1,0.6034]
[1761628158837,4.40654371,4096.2,4096.1,0.1641]
[1761628159967,0.1224,4096.2,4096.1,0.1641]
[1761628160238,1.22,4097.4,4096.1,0.86395219]
[1761628160446,3.66057221,4097.4,4096.6,2.44103206]
[1761628160938,1.22,4097.4,4096.8,2.44092714]
[1761628161442,3.66058187,4097.4,4096.8,0.4393]
[1761628161647,4.28414371,4096.9,4096.1,0.1641]
[1761628161850,4.28414371,4096.9,4096.3,2.44117623]
[1761628162025,4.28414371,4096.9,4096.3,2.44122744]
[1761628162423,4.28414371,4096.9,4096.4,2.44115722]
[1761628162619,4.28414371,4096.9,4096.3,0.4393]
[1761628162825,4.28414371,4096.9,4096.3,2.88047301]
[1761628163154,4.28414371,4096.9,4096.4,2.44115286]
[1761628163735,4.28414371,4096.9,4096.5,2.88040472]
[1761628164554,4.28414371,4097.2,4096.6,2.88034651]
[1761628164958,4.28414371,4097.2,4096.7,0.4393]
[1761628165326,6.72484372,4097.2,4096.7,0.4393]
[1761628167458,2.44076346,4097.1,4096.4,0.4393]
[1761628167840,2.44076346,4097.1,4096.4,2.88046452]
[1761628168756,4.72714371,4097.2,4096.6,2.4410447]
[1761628169357,7.16783536,4097.2,4096.6,2.4410447]
[1761628169854,6.72483536,4097.2,4096.6,2.4410447]
[1761628170060,0.1224,4096.7,4096.6,2.4410447]
[1761628171569,0.1224,4096.7,4096.6,2.8803447]
[1761628172339,0.1224,4096.7,4096.6,2.8303447]
[1761628173561,1.3424,4096.7,4096.6,2.8303447]
[1761628177167,1.3424,4096.7,4096.3,0.002]
[1761628177367,1.3424,4096.7,4096.3,0.4546]
[1761628177666,6.49103177,4096.7,4096.3,0.002]
[1761628177876,0.1224,4096.4,4096.3,0.002]
[1761628178269,0.5841,4096.4,4096.3,0.002]
[1761628178572,0.1224,4096.4,4096.3,0.002]
[1761628180762,0.1224,4096.4,4096.0,2.40338692]
[1761628181091,0.1224,4096.4,4096.1,2.44133198]
[1761628181261,0.1224,4096.4,4096.1,2.44333198]
[1761628181665,0.1224,4096.4,4096.1,0.002]
[1761628185777,0.5841,4096.4,4096.1,0.002]
[1761628185972,2.90293762,4096.3,4096.1,0.002]
[1761628186386,0.4617,4096.2,4096.1,0.002]
[1761628188000,1.6817,4096.2,4096.1,0.002]
[1761628188878,1.22,4096.2,4096.1,0.002]
[1761628194202,1.6817,4096.2,4096.1,0.002]
[1761628194769,1.22,4096.2,4096.1,0.002]
[1761628197179,1.22,4096.2,4096.1,3.05004664]
[1761628197504,1.22,4096.2,4096.1,0.6087]
[1761628197705,1.22,4096.2,4096.1,0.002]
[1761628204193,1.6567,4096.2,4096.1,0.002]
[1761628205397,0.1224,4096.4,4096.1,2.44334204]
[1761628205595,1.22,4096.3,4096.2,3.15640499]
[1761628205796,1.22,4096.3,4096.2,0.7151342]
[1761628206035,1.22,4096.3,4096.2,2.91188704]
[1761628206591,1.22,4096.3,4096.2,0.4706]
[1761628206831,1.22,4096.3,4096.2,2.91188704]
[1761628208033,1.22,4096.3,4096.1,0.2785]
[1761628208233,1.22,4096.3,4096.1,0.1561]
[1761628208933,1.22,4096.3,4096.1,2.59743647]
[1761628209303,1.22,4096.3,4096.2,2.44128704]
[1761628209505,1.22,4096.3,4096.2,2.91188704]
[1761628213340,1.22,4096.3,4096.2,3.47526349]
[1761628213632,1.22,4096.3,4096.2,3.59766349]
[1761628214411,1.22,4096.3,4096.2,0.68577645]
[1761628214604,1.22,4096.3,4096.2,2.56368704]
[1761628215209,1.22,4096.3,4096.2,3.03428704]
[1761628215643,1.221,4096.3,4096.2,3.03428704]
[1761628216344,1.221,4096.3,4096.2,2.56368704]
[1761628222179,1.221,4096.3,4096.1,0.002]
[1761628222337,1.221,4096.3,4096.1,2.44334304]
[1761628222537,1.221,4096.3,4096.1,0.002]
[1761628223269,1.221,4096.3,4096.1,2.44334644]
[1761628223467,1.221,4096.3,4096.2,2.44128704]
[1761628223766,1.221,4096.3,4096.1,0.002]
[1761628224138,1.221,4096.3,4096.1,2.44333619]
[1761628225261,1.221,4096.3,4096.1,0.002]
[1761628225769,1.221,4096.3,4096.1,2.44333331]
[1761628226778,1.221,4096.3,4096.2,3.03258704]
[1761628227076,1.221,4096.3,4096.2,3.15498704]
[1761628230180,1.221,4096.3,4096.2,2.71778704]
[1761628230583,0.001,4096.3,4096.2,2.71778704]
[1761628230769,0.001,4096.3,4096.2,3.15498704]
[1761628231092,0.001,4096.3,4096.2,4.28457316]
[1761628233366,0.001,4096.3,4096.2,3.84737316]
[1761628233580,0.001,4096.3,4096.2,2.71778704]
[1761628233778,0.001,4096.3,4096.2,0.1224]
[1761628233979,1.221,4096.3,4096.2,0.1224]
[1761628235100,1.221,4096.3,4096.2,2.56368704]
[1761628237102,1.221,4096.3,4096.2,0.1224]
[1761628237673,1.221,4096.3,4096.2,2.56368704]
[1761628239669,1.221,4096.3,4096.2,2.99408704]
[1761628241303,1.221,4096.3,4096.2,2.56368704]
[1761628242098,1.221,4096.3,4096.2,2.44128704]
[1761628243710,1.221,4096.3,4096.2,2.87168704]
[1761628244012,1.221,4096.3,4096.2,2.89609991]
[1761628244211,1.221,4096.3,4096.2,2.87168704]
[1761628246422,1.221,4096.3,4096.2,2.44128704]
[1761628247214,1.221,4096.3,4096.1,0.1244]
[1761628247581,1.221,4096.3,4096.1,2.56573497]
[1761628247786,1.221,4096.3,4096.2,2.44128704]
[1761628252140,1.6536,4096.3,4096.1,2.44334238]
[1761628252446,0.4326,4096.2,4096.1,0.002]
[1761628258954,2.87388704,4096.2,4096.1,0.002]
[1761628259127,3.52748658,4096.2,4096.1,0.002]
[1761628259341,1.08619954,4096.2,4096.1,0.002]
[1761628259943,3.52748658,4096.2,4096.1,0.002]
[1761628260561,1.08619954,4096.2,4096.1,0.002]
[1761628260756,0.4326,4096.2,4096.1,0.002]
[1761628261939,0.555,4096.2,4096.1,0.002]
[1761628262573,2.99628704,4096.2,4096.1,0.002]
[1761628263257,0.555,4096.2,4096.1,0.002]
[1761628263441,2.99628704,4096.2,4096.1,0.002]
[1761628263770,4.09117851,4096.2,4096.1,0.002]
[1761628266886,1.64989147,4096.2,4096.1,0.002]
[1761628268883,1.21729147,4096.2,4096.1,0.002]
[1761628269091,0.1224,4096.2,4096.1,0.002]
[1761628269759,0.1224,4096.2,4096.1,2.59744664]
[1761628270001,0.1224,4096.2,4096.1,0.1561]
[1761628270163,0.1224,4096.2,4096.1,0.002]
[1761628271274,0.1234,4096.2,4096.1,0.002]
[1761628274363,0.1234,4096.2,4096.1,7.63576035]
[1761628274364,0.001,4096.2,4096.1,7.63576035]
[1761628274564,1.221,4096.2,4096.1,7.73374689]
[1761628275069,1.221,4096.2,4096.1,3.44333292]
[1761628276577,1.221,4096.2,4096.1,4.17593454]
[1761628277678,1.221,4096.2,4096.1,3.74293454]
[1761628277999,1.221,4096.2,4096.1,4.17593454]
[1761628280681,1.221,4096.2,4096.1,0.85700162]
[1761628280880,1.221,4096.2,4096.1,0.002]
[1761628284118,1.221,4096.2,4096.1,2.87634664]
[1761628284326,1.221,4096.2,4096.1,3.03044664]
[1761628284530,1.221,4096.2,4096.1,3.15284664]
[1761628284828,1.221,4096.2,4096.1,3.71267769]
[1761628287031,1.221,4096.2,4096.1,3.27967769]
[1761628287807,1.221,4096.2,4096.1,3.71267769]
[1761628291932,1.221,4096.2,4096.1,4.44529005]
[1761628295349,1.221,4096.2,4096.1,3.85819005]
[1761628295913,1.221,4096.2,4096.1,3.298359]
[1761628296243,0.001,4096.2,4096.1,2.56574664]
[1761628296814,0.001,4096.2,4096.1,3.00744664]
[1761628297031,0.001,4096.2,4096.1,3.16154664]
[1761628297432,0.001,4096.2,4096.1,2.71984664]
[1761628298042,0.001,4096.2,4096.1,2.56574664]
[1761628301349,0.439,4096.2,4096.1,2.56574664]
[1761628301665,0.001,4096.2,4096.1,2.56574664]
[1761628301884,0.439,4096.2,4096.1,2.56574664]
[1761628302841,0.439,4096.2,4096.1,0.1244]
[1761628304274,0.439,4096.2,4096.1,2.56574664]
[1761628306391,0.439,4096.2,4096.1,0.002]
[1761628306547,0.7274,4096.2,4096.1,0.002]
[1761628306747,3.16868704,4096.2,4096.1,0.002]
[1761628314857,3.57049747,4096.2,4096.1,0.002]
[1761628315059,3.66822064,4096.2,4096.1,0.002]
[1761628319398,3.14401021,4096.2,4096.1,0.002]
[1761628323620,3.66759064,4096.2,4096.1,0.002]
[1761628323822,5.22279064,4096.2,4096.1,0.002]
[1761628324331,4.69921021,4096.2,4096.1,0.002]
[1761628324514,5.22283701,4096.2,4096.1,0.002]
[1761628324830,5.34523701,4096.2,4096.1,0.002]
[1761628327349,6.56523701,4096.2,4096.1,0.002]
[1761628328036,6.12723701,4096.2,4096.1,0.002]
[1761628328255,6.03841021,4096.2,4096.1,0.002]
[1761628328402,1.60712317,4096.2,4096.1,0.002]
[1761628328723,3.95068704,4096.2,4096.1,0.002]
[1761628328928,4.38548704,4096.2,4096.1,0.002]
[1761628329634,3.95068704,4096.2,4096.1,0.002]
[1761628329841,4.38548704,4096.2,4096.1,0.002]
[1761628333405,3.95068704,4096.2,4096.1,0.002]
[1761628333713,4.38548704,4096.2,4096.1,0.002]
[1761628333919,3.95068704,4096.2,4096.1,0.002]
[1761628334450,1.5094,4096.2,4096.1,0.002]
[1761628334679,3.95068704,4096.2,4096.1,0.002]
[1761628334974,4.38548704,4096.2,4096.1,0.002]
[1761628335345,4.90999998,4096.2,4096.1,0.002]
[1761628335548,4.47519998,4096.2,4096.1,0.002]
[1761628336358,4.30919998,4096.2,4096.1,0.002]
[1761628338299,1.74551294,4096.2,4096.1,0.4338]
[1761628338450,1.3434,4096.2,4096.1,0.5879]
[1761628338645,1.3434,4096.2,4096.1,0.1561]
[1761628339050,1.3434,4096.2,4096.1,0.5879]
[1761628341650,1.3434,4096.2,4096.1,0.002]
[1761628347386,3.78468704,4096.2,4096.1,0.002]
[1761628347879,1.3434,4096.2,4096.1,0.002]
[1761628348300,3.78468704,4096.2,4096.1,0.002]
[1761628349231,1.3434,4096.2,4096.1,0.002]
[1761628350019,3.78468704,4096.2,4096.1,0.002]
[1761628350316,4.21948704,4096.2,4096.1,0.002]
[1761628350716,4.88564752,4096.2,4096.1,0.002]
[1761628355722,9.17870729,4096.2,4096.1,0.002]
[1761628356328,9.70359429,4096.2,4096.1,0.002]
[1761628362733,11.25879429,4096.2,4096.1,0.002]
[1761628362938,11.91332779,4096.2,4096.1,0.002]
[1761628363950,11.25879429,4096.2,4096.1,0.002]
[1761628364452,11.91500887,4096.2,4096.1,0.002]
[1761628366365,11.79260887,4096.2,4096.1,0.002]
[1761628366552,11.13639429,4096.2,4096.1,0.002]
[1761628367435,11.23412199,4096.2,4096.1,0.002]
[1761628372177,11.63962599,4096.2,4096.1,0.002]
[1761628376474,11.76202599,4096.2,4096.1,0.002]
[1761628381986,11.32722599,4096.2,4096.1,0.002]
[1761628382378,11.77672599,4096.2,4096.1,0.002]
[1761628384268,11.37122199,4096.2,4096.1,0.002]
[1761628384491,11.27349429,4096.2,4096.1,0.002]
[1761628386908,10.82399429,4096.2,4096.1,0.002]
[1761628387212,10.81419174,4096.2,4096.1,0.002]
[1761628387396,10.81419174,4096.2,4096.1,0.4337]
[1761628387576,10.81419174,4096.2,4096.1,0.002]
[1761628388191,10.60733381,4096.2,4096.1,0.002]
[1761628397444,2.4417043,4095.5,4095.4,0.4417]
[1761628397928,2.9665913,4095.5,4095.4,0.4417]
[1761628398532,4.1865913,4095.5,4095.4,0.4417]
[1761628401102,4.1865913,4095.5,4095.4,0.01]
[1761628401302,4.1865913,4095.5,4095.4,0.4417]
[1761628402247,1.744887,4095.5,4095.4,0.4417]
[1761628402620,1.22,4095.5,4095.4,0.4417]
[1761628403719,1.22,4095.5,4095.4,1.19403559]
[1761628403909,1.22,4095.5,4095.4,0.8834]
[1761628408342,3.6617043,4095.5,4095.4,0.01]
[1761628409212,3.6617043,4095.5,4095.4,0.012]
[1761628409614,1.221,4095.5,4095.4,0.012]
[1761628410243,3.6627043,4095.5,4095.4,0.012]
[1761628410444,4.18872205,4095.5,4095.4,0.012]
[1761628411120,3.6627043,4095.5,4095.4,0.012]
[1761628412122,4.18879099,4095.5,4095.4,0.012]
[1761628415247,1.74708669,4095.5,4095.4,0.4636]
[1761628415452,4.18879099,4095.5,4095.4,0.4636]
[1761628417749,4.18879099,4095.5,4095.4,0.012]
[1761628418071,4.18879099,4095.5,4095.4,0.4636]
[1761628418569,1.74708669,4095.5,4095.4,0.4636]
[1761628419068,4.18879099,4095.5,4095.4,0.4636]
[1761628421169,4.18879099,4095.5,4095.4,0.012]
[1761628425441,4.86406925,4095.5,4095.4,0.012]
[1761628425670,5.29406925,4095.5,4095.4,0.012]
[1761628427361,10.44638516,4095.5,4095.4,0.012]
[1761628431178,12.6587835,4095.5,4095.4,0.012]
[1761628431381,12.09932719,4095.5,4095.4,0.012]
[1761628432054,12.50483119,4095.5,4095.4,0.012]
[1761628433369,2.84732755,4095.3,4095.2,0.002]
[1761628433564,6.36413575,4095.3,4095.2,0.002]
[1761628433874,6.79413575,4095.3,4095.2,0.002]
[1761628434273,5.48101424,4095.3,4095.2,0.002]
[1761628434878,6.79413575,4095.3,4095.2,0.002]
[1761628435200,6.79413575,4095.3,4095.1,0.01]
[1761628435201,4.40258718,4095.2,4095.1,0.01]
[1761628435378,4.402945,4094.6,4094.1,0.01]
[1761628435578,2.4424796,4094.2,4094.1,0.01]
[1761628435782,10.44969308,4094.2,4094.1,0.01]
[1761628435978,11.43357977,4094.2,4094.1,0.01]
[1761628436205,11.39429031,4094.2,4094.1,0.01]
[1761628438806,10.77789031,4094.2,4094.1,0.01]
[1761628439106,11.22949031,4094.2,4094.1,0.01]
[1761628439603,10.77789031,4094.2,4094.1,0.01]
[1761628440812,10.32009031,4094.2,4094.1,0.01]
[1761628441991,11.54109031,4094.2,4094.1,0.01]
[1761628442187,11.01500362,4094.2,4094.1,0.01]
[1761628442412,10.37099551,4094.2,4094.1,0.01]
[1761628442614,5.2186796,4094.2,4094.1,0.6479]
[1761628443790,2.7762,4094.2,4094.1,0.6479]
[1761628443995,3.6634796,4094.2,4094.1,0.6479]
[1761628444216,1.221,4094.2,4094.1,0.6479]
[1761628444602,3.6634796,4094.2,4094.1,0.6479]
[1761628444911,3.6634796,4094.2,4094.1,0.6499]
[1761628445522,3.7858796,4094.2,4094.1,0.6499]
[1761628447398,1.3434,4094.2,4094.1,0.6499]
[1761628448952,1.3434,4094.2,4094.1,0.77988]
[1761628453037,1.3434,4094.2,4094.1,1.51298647]
[1761628456455,1.3434,4094.2,4094.1,1.38300647]
[1761628456971,1.3434,4094.2,4094.1,0.6499]
[1761628458326,1.3434,4094.2,4094.1,0.1983]
[1761628459070,1.3434,4094.2,4094.1,0.6508]
[1761628463196,1.3434,4094.2,4094.1,0.1983]
[1761628463905,1.3434,4094.2,4094.1,0.012]
[1761628464062,4.2211796,4094.2,4094.1,0.012]
[1761628464992,5.6539796,4094.2,4094.1,0.012]
[1761628465213,6.17904742,4094.2,4094.1,0.012]
[1761628468473,6.58455142,4094.2,4094.1,0.012]
[1761628468801,7.24024088,4094.2,4094.1,0.012]
[1761628469004,8.82774781,4094.2,4094.1,0.012]
[1761628472502,8.17205835,4094.2,4094.1,0.012]
[1761628474919,8.39224148,4094.2,4094.1,0.012]
[1761628475318,9.26649409,4094.2,4094.1,0.012]
[1761628478123,8.39224148,4094.2,4094.1,0.012]
[1761628478325,9.26649409,4094.2,4094.1,0.012]
[1761628479129,9.26649409,4094.2,4094.1,1e-08]
[1761628479730,9.26649409,4094.2,4093.6,0.002]
[1761628479731,4.40348192,4093.7,4093.6,0.002]
[1761628480028,10.03566951,4093.7,4093.6,0.002]
[1761628480229,10.50786951,4093.7,4093.6,0.002]
[1761628481704,10.03566951,4093.7,4093.6,0.002]
[1761628481926,10.50786951,4093.7,4093.6,0.002]
[1761628482426,2.96784574,4093.7,4093.6,0.002]
[1761628482616,4.18884574,4093.7,4093.6,0.002]
[1761628482932,7.96387913,4093.7,4093.6,0.002]
[1761628484831,3.66377792,4093.7,4093.6,0.002]
[1761628485051,7.96387913,4093.7,4093.6,0.002]
[1761628485819,3.66377792,4093.7,4093.6,0.002]
[1761628486061,3.66377792,4093.7,4093.6,0.4419]
[1761628487556,3.66377792,4093.7,4093.6,0.002]
[1761628488162,4.18819297,4093.7,4093.6,0.002]
[1761628488327,5.43681276,4093.7,4093.6,0.002]
[1761628489928,4.18819297,4093.7,4093.6,0.002]
[1761628490134,8.48829418,4093.7,4093.6,0.002]
[1761628492439,8.61069418,4093.7,4093.6,0.002]
[1761628492943,3.08959297,4093.7,4093.6,0.002]
[1761628493143,8.61069418,4093.7,4093.6,0.002]
[1761628493344,8.61069418,4093.7,4093.6,0.4419]
[1761628493865,8.61069418,4093.7,4093.6,0.002]
[1761628494476,4.31059297,4093.7,4093.6,0.002]
[1761628494674,8.61069418,4093.7,4093.6,0.002]
[1761628495855,4.31059297,4093.7,4093.6,0.002]
[1761628496040,8.61069418,4093.7,4093.6,0.002]